{"text_format":"3","workbook":"xlsx","n_sheets":2,"sheets":["Start","Wedding budget"],"read":"whole","date_system":"1900"}

{"sheet":"Start","index":0,"n_rows":7,"n_cols":2,"rows_kept":7}
[null,"ABOUT THIS TEMPLATE"]
[null,"Use this template to log your actual wedding expenses on various items and track them against budgeted amounts."]
[null,"Enter expenses on apparel, decorations, gifts, flowers, music, photography, reception, stationery, transportation, and miscellaneous items in respective tables."]
[null,"Total estimated and total actual expenses are auto-calculated."]
[null,"Note: "]
[null,"Additional instructions have been provided in column A in WEDDING BUDGET worksheet. This text has been intentionally hidden. To remove text, select column A, then select DELETE. To unhide text, select column A, then change font color."]
[null,"To learn more about tables, press SHIFT and then F10 within a table, select the TABLE option, and then select ALTERNATIVE TEXT."]

{"sheet":"Wedding budget","index":1,"n_rows":93,"n_cols":4,"rows_kept":93,"merged":[[0,1,0,3],[2,1,2,3],[6,1,6,3],[15,1,15,3],[25,1,25,3],[34,1,34,3],[43,1,43,3],[50,1,50,3],[59,1,59,3],[68,1,68,3],[77,1,77,3],[85,1,85,3]]}
[null,"WEDDING BUDGET"]
[]
[null,"TOTAL EXPENSES "]
[null,"Item ","Estimated","Actual"]
[null,"Total expenses ",{"$f":"SUM(Apparel[[#Totals],[Estimated]],Decorations[[#Totals],[Estimated]],Gifts[[#Totals],[Estimated]],Flowers[[#Totals],[Estimated]],Music[[#Totals],[Estimated]],Photography[[#Totals],[Estimated]],Reception[[#Totals],[Estimated]],StationeryAndPrinting[[#Totals],[Estimated]],Transportation[[#Totals],[Estimated]],OtherExpenses[[#Totals],[Estimated]])","v":0},{"$f":"SUM(Apparel[[#Totals],[Actual]],Decorations[[#Totals],[Actual]],Gifts[[#Totals],[Actual]],Flowers[[#Totals],[Actual]],Music[[#Totals],[Actual]],Photography[[#Totals],[Actual]],Reception[[#Totals],[Actual]],StationeryAndPrinting[[#Totals],[Actual]],Transportation[[#Totals],[Actual]],OtherExpenses[[#Totals],[Actual]],)","v":0}]
[]
[null,"APPAREL"]
[null,"Item ","Estimated","Actual"]
[null,"Engagement ring"]
[null,"Wedding rings"]
[null,"Bridal gown"]
[null,"Veil/headpiece"]
[null,"Other:"]
[null,"Total apparel",{"$f":"SUBTOTAL(109,Apparel[Estimated])","v":0},{"$f":"SUBTOTAL(109,Apparel[Actual])","v":0}]
[]
[null,"DECORATIONS"]
[null,"Item ","Estimated","Actual"]
[null,"Bows for church pews/other seating"]
[null,"Table centerpieces (excludes flowers)"]
[null,"Candles"]
[null,"Lighting"]
[null,"Balloons"]
[null,"Other:"]
[null,"Total decorations",{"$f":"SUBTOTAL(109,Decorations[Estimated])","v":0},{"$f":"SUBTOTAL(109,Decorations[Actual])","v":0}]
[]
[null,"GIFTS"]
[null,"Item ","Estimated","Actual"]
[null,"Attendants"]
[null,"Bride and groom"]
[null,"Parents"]
[null,"Readers/other participants"]
[null,"Other:"]
[null,"Total gifts",{"$f":"SUBTOTAL(109,Gifts[Estimated])","v":0},{"$f":"SUBTOTAL(109,Gifts[Actual])","v":0}]
[]
[null,"FLOWERS"]
[null,"Item ","Estimated","Actual"]
[null,"Bouquets"]
[null,"Boutonnières"]
[null,"Corsages"]
[null,"Ceremony"]
[null,"Other:"]
[null,"Total flowers",{"$f":"SUBTOTAL(109,Flowers[Estimated])","v":0},{"$f":"SUBTOTAL(109,Flowers[Actual])","v":0}]
[]
[null,"MUSIC"]
[null,"Item ","Estimated","Actual"]
[null,"Musicians for ceremony"]
[null,"Band/DJ for reception"]
[null,"Other:"]
[null,"Total music",{"$f":"SUBTOTAL(109,Music[Estimated])","v":0},{"$f":"SUBTOTAL(109,Music[Actual])","v":0}]
[]
[null,"PHOTOGRAPHY"]
[null,"Item ","Estimated","Actual"]
[null,"Formals"]
[null,"Candids"]
[null,"Extra prints"]
[null,"Photo albums"]
[null,"Other:"]
[null,"Total photography",{"$f":"SUBTOTAL(109,Photography[Estimated])","v":0},{"$f":"SUBTOTAL(109,Photography[Actual])","v":0}]
[]
[null,"RECEPTION "]
[null,"Item ","Estimated","Actual"]
[null,"Room/hall fees"]
[null,"Tables and chairs"]
[null,"Food"]
[null,"Linens"]
[null,"Other:"]
[null,"Total reception (excludes music and decorations)",{"$f":"SUBTOTAL(109,Reception[Estimated])","v":0},{"$f":"SUBTOTAL(109,Reception[Actual])","v":0}]
[]
[null,"STATIONERY & PRINTING"]
[null,"Item ","Estimated","Actual"]
[null,"Invitations"]
[null,"Announcements"]
[null,"Thank-You cards"]
[null,"Personal stationery"]
[null,"Other:"]
[null,"Total stationery/printing",{"$f":"SUBTOTAL(109,StationeryAndPrinting[Estimated])","v":0},{"$f":"SUBTOTAL(109,StationeryAndPrinting[Actual])","v":0}]
[]
[null,"TRANSPORTATION"]
[null,"Item ","Estimated","Actual"]
[null,"Limousines/trolleys"]
[null,"Parking"]
[null,"Taxis"]
[null,"Other:"]
[null,"Total transportation",{"$f":"SUBTOTAL(109,Transportation[Estimated])","v":0},{"$f":"SUBTOTAL(109,Transportation[Actual])","v":0}]
[]
[null,"OTHER EXPENSES"]
[null,"Item ","Estimated","Actual"]
[null,"Officiant"]
[null,"Church/ceremony site fee"]
[null,"Wedding coordinator"]
[null,"Rehearsal dinner"]
[null,"Other:"]
[null,"Total other expenses",{"$f":"SUBTOTAL(109,OtherExpenses[Estimated])","v":0},{"$f":"SUBTOTAL(109,OtherExpenses[Actual])","v":0}]